bitfinex/quotes_ETHUSD_20250810
["timestamp","ask_amount","ask_price","bid_price","bid_amount"]
[1754851440414,0.4504,4233.3,4233.2,0.1184]
[1754851440845,0.002,4233.4,4233.2,0.1184]
[1754851441622,0.002,4233.3,4233.2,0.1184]
[1754851442321,0.4524,4233.3,4233.2,0.1184]
[1754851443050,0.9194,4233.3,4233.2,3.6934]
[1754851443843,0.9194,4233.3,4233.2,0.1184]
[1754851444927,0.4524,4233.3,4233.2,0.1184]
[1754851445637,0.4524,4233.3,4233.2,2.48067912]
[1754851445946,0.4524,4233.3,4233.2,0.1184]
[1754851453836,0.002,4233.3,4233.2,0.1184]
[1754851469083,0.002,4233.3,4233.2,2.48067912]
[1754851469376,0.002,4233.3,4233.2,2.94817912]
[1754851470263,0.002,4233.3,4233.2,0.5859]
[1754851471784,0.002,4233.3,4233.2,0.1184]
[1754851474179,2.36227912,4233.2,4233.1,0.001]
[1754851474567,3.24957912,4233.2,4233.1,0.001]
[1754851477184,2.81757912,4233.2,4233.1,0.001]
[1754851477358,3.24957912,4233.2,4233.1,0.001]
[1754851477569,7.91229807,4233.2,4233.1,0.001]
[1754851477754,8.4226014,4233.2,4233.1,0.001]
[1754851477953,9.05919543,4233.2,4233.1,0.001]
[1754851478196,8.4226014,4233.2,4233.1,0.001]
[1754851478364,8.4226014,4233.2,4232.8,0.001]
[1754851478365,3.0,4233.1,4232.8,0.001]
[1754851478555,0.1184,4232.9,4232.8,0.001]
[1754851478893,2.98467064,4232.9,4232.8,0.001]
[1754851479094,3.49497397,4232.9,4232.8,0.001]
[1754851479267,4.38227397,4232.9,4232.8,0.001]
[1754851480785,4.38227397,4232.9,4232.4,0.001]
[1754851480786,2.36255817,4232.7,4232.4,0.001]
[1754851480985,2.36266981,4232.5,4232.4,0.001]
[1754851481184,3.09398312,4232.5,4232.4,1e-08]
[1754851481487,3.09398312,4232.5,4231.9,0.001]
[1754851481488,5.36289312,4232.1,4232.0,1e-08]
[1754851481660,9.22024065,4232.1,4232.0,1e-08]
[1754851481988,10.10754065,4232.1,4232.0,1e-08]
[1754851482286,10.22594065,4232.1,4232.0,1e-08]
[1754851483164,2.36294896,4232.0,4231.7,1e-08]
[1754851483373,4.32281027,4231.9,4231.7,1e-08]
[1754851483667,4.32281027,4231.9,4231.5,0.001]
[1754851483668,5.36311647,4231.7,4231.6,1e-08]
[1754851484098,6.25041647,4231.7,4231.6,1e-08]
[1754851485595,8.93811647,4231.7,4231.6,1e-08]
[1754851486100,9.82541647,4231.7,4231.6,1e-08]
[1754851486298,11.11483428,4231.7,4231.6,1e-08]
[1754851487793,10.68283428,4231.7,4231.6,1e-08]
[1754851489295,10.22753428,4231.7,4231.6,1e-08]
[1754851493191,10.71803428,4231.7,4231.6,1e-08]
[1754851493903,10.22753428,4231.7,4231.6,1e-08]
[1754851496799,10.71803428,4231.7,4231.6,1e-08]
[1754851497706,11.15053428,4231.7,4231.6,1e-08]
[1754851498101,7.57553428,4231.7,4231.6,1e-08]
[1754851498305,11.15153428,4231.7,4231.6,1e-08]
[1754851501072,11.15153428,4231.7,4231.5,1e-08]
[1754851501073,5.91317232,4231.6,4231.5,1e-08]
[1754851501272,8.20893821,4231.6,4231.5,1e-08]
[1754851501677,8.30361321,4231.6,4231.5,1e-08]
[1754851502804,9.0316889,4231.6,4231.5,1e-08]
[1754851503185,2.36322816,4231.5,4231.4,1e-08]
[1754851503386,11.6430699,4231.5,4231.4,1e-08]
[1754851503698,2.36339572,4231.2,4231.1,0.001]
[1754851503884,2.36339572,4231.2,4230.3,0.001]
[1754851503885,2.36361917,4230.8,4230.3,0.001]
[1754851504085,9.05801917,4230.8,4230.3,0.001]
[1754851504391,10.58389795,4230.8,4230.3,0.001]
[1754851504582,12.09919025,4230.8,4230.3,0.001]
[1754851504778,11.66669025,4230.8,4230.3,0.001]
[1754851504979,12.09919025,4230.8,4230.3,0.001]
[1754851505310,11.66682182,4230.8,4230.3,0.001]
[1754851507915,11.17632182,4230.8,4230.3,0.001]
[1754851508113,11.17632182,4230.8,4230.3,0.4477]
[1754851510998,11.17632182,4230.8,4230.4,0.4467]
[1754851512540,8.17632182,4230.8,4230.7,0.4477]
[1754851512715,6.56621495,4230.8,4230.7,0.8997]
[1754851512890,9.56621495,4230.8,4230.7,0.8997]
[1754851513218,9.56621495,4230.8,4230.7,0.4477]
[1754851514392,9.05801917,4230.8,4230.7,0.4477]
[1754851514588,10.2449455,4230.8,4230.7,0.4477]
[1754851514802,10.75402289,4230.8,4230.7,0.4477]
[1754851514999,10.2449455,4230.8,4230.7,0.001]
[1754851515206,11.89797397,4230.8,4230.7,0.001]
[1754851515527,11.99266397,4230.8,4230.7,0.001]
[1754851515894,3.55,4230.7,4230.3,0.001]
[1754851516198,9.78624742,4230.4,4230.3,1e-08]
[1754851516405,14.31426331,4230.4,4230.3,1e-08]
[1754851516600,16.08465648,4230.4,4230.3,1e-08]
[1754851516808,15.23726331,4230.4,4230.3,1e-08]
[1754851517108,16.68245081,4230.4,4230.3,1e-08]
[1754851517305,16.49594605,4230.4,4230.3,1e-08]
[1754851517616,12.49580942,4230.4,4230.3,1e-08]
[1754851517997,12.9109844,4230.4,4230.3,1e-08]
[1754851519893,13.3677844,4230.4,4230.3,1e-08]
[1754851521196,12.27495863,4230.4,4230.3,1e-08]
[1754851521597,12.73175863,4230.4,4230.3,1e-08]
[1754851521992,12.27495863,4230.4,4230.3,1e-08]
[1754851522195,11.78445863,4230.4,4230.3,1e-08]
[1754851522728,11.23445863,4230.4,4230.3,0.47190001]
[1754851523107,11.23445863,4230.4,4230.3,1e-08]
[1754851523939,12.32734446,4230.4,4230.3,1e-08]
[1754851524195,12.69835863,4230.4,4230.3,1e-08]
[1754851524362,13.5457518,4230.4,4230.3,1e-08]
[1754851524555,2.36479296,4228.7,4228.3,0.4719]
[1754851524773,5.94279296,4228.7,4228.6,0.5119]
[1754851525244,9.06119296,4228.7,4228.6,0.04]
[1754851525449,9.56987366,4228.7,4228.6,0.04]
[1754851525768,10.84310932,4228.7,4228.6,0.04]
[1754851528171,11.75700932,4228.7,4228.6,0.04]
[1754851528489,2.36518448,4228.0,4227.9,0.9709]
[1754851528783,6.06458448,4228.0,4227.9,0.9709]
[1754851528982,6.06458448,4228.0,4227.9,1.4701]
[1754851529551,3.6994,4228.0,4227.9,1.4701]
[1754851530072,0.1184,4228.0,4227.9,1.4701]
[1754851532286,3.581,4228.6,4227.9,1.97604625]
[1754851532465,3.581,4228.7,4228.0,0.9711]
[1754851532667,3.985266,4228.8,4228.2,0.1184]
[1754851532850,3.985266,4228.8,4228.3,1.8711]
[1754851533047,2.36482012,4228.7,4228.4,0.9711]
[1754851533473,2.36486104,4228.6,4228.5,0.9711]
[1754851533656,2.36486104,4228.6,4228.2,0.1184]
[1754851534383,2.3648074,4228.7,4228.3,0.9711]
[1754851534580,3.985266,4228.8,4228.2,0.1184]
[1754851534581,6.35000651,4228.8,4228.4,0.9711]
[1754851534786,6.35000651,4228.8,4228.2,0.1184]
[1754851534956,6.35000651,4228.8,4228.5,0.9711]
[1754851535281,6.35000651,4228.8,4228.6,0.9711]
[1754851535507,6.35000651,4228.8,4228.7,0.9711]
[1754851535674,3.985266,4228.8,4228.7,0.9711]
[1754851536273,0.285866,4228.8,4228.7,0.9711]
[1754851536995,0.285866,4228.8,4228.7,3.33589296]
[1754851537573,0.285866,4228.8,4228.7,3.91780958]
[1754851537779,0.285866,4228.8,4228.7,4.81780958]
[1754851538000,3.582,4229.9,4228.7,2.45301662]
[1754851538185,0.002,4229.7,4228.8,0.9711]
[1754851538505,0.002,4229.7,4229.4,0.1184]
[1754851539179,0.002,4229.7,4229.5,0.4719]
[1754851539180,2.36623799,4229.7,4229.5,0.4719]
[1754851539393,2.36438626,4229.5,4229.2,0.4719]
[1754851539708,2.95911593,4229.6,4229.3,0.4719]
[1754851539889,2.36434566,4229.5,4229.3,0.4719]
[1754851541307,2.36434566,4229.5,4229.4,0.4719]
[1754851542715,5.94829793,4229.6,4229.4,0.4719]
[1754851543413,2.36434566,4229.5,4229.4,0.4719]
[1754851544121,5.9483,4229.6,4229.4,0.4719]
[1754851544519,5.9483,4229.6,4229.5,0.4719]
[1754851544914,5.94828976,4229.6,4229.5,0.4719]
[1754851547006,3.584,4229.6,4229.5,0.9711]
[1754851547592,3.584,4229.6,4229.5,0.4719]
[1754851547788,0.002,4229.7,4229.5,0.4719]
[1754851547994,0.002,4229.7,4229.6,0.4694]
[1754851548416,0.002,4229.7,4229.6,0.9131]
[1754851550119,0.002,4229.7,4229.6,3.27738976]
[1754851550294,0.002,4229.7,4229.6,0.9131]
[1754851551395,0.002,4229.7,4229.6,3.27738976]
[1754851553205,0.002,4229.7,4229.6,3.94340768]
[1754851553526,0.002,4229.7,4229.6,4.06180768]
[1754851555534,0.002,4229.7,4229.6,7.64180768]
[1754851557221,0.002,4229.7,4229.6,4.06180768]
[1754851557596,0.002,4229.7,4229.6,7.64180768]
[1754851558235,0.002,4229.7,4229.6,7.64080768]
[1754851564448,0.002,4229.7,4229.6,10.64080768]
[1754851566233,0.002,4229.7,4229.6,11.19080768]
[1754851577212,0.002,4230.2,4230.1,5.9140103]
[1754851577510,0.002,4230.6,4230.5,5.91378678]
[1754851577805,0.002,4230.6,4230.5,9.48978678]
[1754851578000,0.002,4230.6,4230.5,10.07518678]
[1754851579074,0.002,4230.6,4230.5,9.60818678]
[1754851581040,0.002,4230.6,4230.5,10.07518678]
[1754851581223,0.002,4230.6,4230.5,11.36738145]
[1754851582027,0.002,4230.6,4230.5,11.85028145]
[1754851582397,0.042,4230.9,4230.8,2.91361917]
[1754851582598,0.042,4230.9,4230.8,13.24362393]
[1754851582797,0.042,4230.9,4230.8,14.31192393]
[1754851582997,0.042,4230.9,4230.8,16.3450838]
[1754851583405,0.042,4230.9,4230.8,15.8621838]
[1754851590827,0.042,4230.9,4230.8,16.3450838]
[1754851591245,0.002,4231.7,4231.0,0.55]
[1754851591421,0.002,4231.7,4231.6,9.66717708]
[1754851591624,0.002,4231.7,4231.6,13.36057708]
[1754851591818,0.002,4231.7,4231.6,14.31047708]
[1754851596651,0.002,4232.5,4232.4,2.36272564]
[1754851596957,0.002,4232.5,4232.4,8.93772564]
[1754851597127,0.002,4232.5,4232.4,0.1184]
[1754851597321,0.002,4232.5,4232.4,3.6934]
[1754851597527,0.9543,4232.5,4232.4,3.6934]
[1754851597758,0.9543,4232.5,4232.4,6.05612564]
[1754851598121,0.9543,4232.5,4232.4,3.6934]
[1754851599780,0.9543,4232.5,4232.4,0.1184]
[1754851599781,1.28618137,4232.5,4232.4,0.1184]
[1754851599973,0.9543,4232.5,4232.4,0.1184]
[1754851600359,3.31696981,4232.5,4232.4,0.1184]
[1754851601295,2.36275512,4232.4,4232.1,0.1184]
[1754851601503,3.31505512,4232.4,4232.1,0.1184]
[1754851601793,0.9523,4232.3,4232.1,0.1184]
[1754851601990,1.52046767,4232.3,4232.1,0.1184]
[1754851602191,0.9523,4232.2,4232.1,0.1184]
[1754851606908,0.4904,4232.5,4232.1,0.1184]
[1754851607215,0.9523,4232.4,4232.0,5.93793621]
[1754851607406,0.002,4232.5,4232.4,0.1184]
[1754851608091,0.4705,4232.5,4232.4,0.1184]
[1754851608287,0.9441,4232.5,4232.4,0.1184]
[1754851610020,0.002,4232.5,4232.4,0.1184]
[1754851610217,0.4705,4232.5,4232.4,0.1184]
[1754851610919,0.9441,4232.5,4232.4,1.0184]
[1754851615095,0.4705,4232.5,4232.4,1.0184]
[1754851615317,0.002,4232.5,4232.4,1.0184]
[1754851615816,0.4705,4232.5,4232.4,1.0184]
[1754851622132,0.002,4232.5,4232.4,1.0184]
[1754851624502,0.4705,4232.5,4232.4,1.0184]
[1754851631620,0.002,4232.5,4232.4,1.0184]
[1754851654279,0.002,4232.5,4232.4,1.4693]
[1754851654582,0.478,4232.5,4232.4,1.0184]
[1754851654738,3.27816981,4232.5,4232.4,0.9]
[1754851655062,2.36283729,4232.2,4232.1,0.001]
[1754851655460,3.27633729,4232.2,4232.1,0.001]
[1754851659879,2.83883729,4232.2,4232.1,0.001]
[1754851660043,3.27633729,4232.2,4232.1,0.001]
[1754851668370,6.27633729,4232.2,4232.1,0.001]
[1754851668598,8.16915314,4232.2,4232.1,0.001]
[1754851668883,8.16915314,4232.2,4232.1,1e-08]
[1754851668884,8.94021427,4232.2,4232.1,1e-08]
[1754851669857,10.32135488,4232.2,4232.1,1e-08]
[1754851671159,10.32135488,4232.2,4232.1,0.46060001]
[1754851672595,10.32135488,4232.2,4232.1,1e-08]
[1754851677092,10.77625488,4232.2,4232.1,1e-08]
[1754851678366,11.20495488,4232.2,4232.1,1e-08]
[1754851679416,11.7142272,4232.2,4232.1,1e-08]
[1754851679705,11.93528002,4232.2,4232.1,1e-08]
[1754851679903,12.05368002,4232.2,4232.1,1e-08]
[1754851680404,12.60368002,4232.2,4232.1,1e-08]
[1754851680608,13.2400171,4232.2,4232.1,1e-08]
[1754851681390,12.60368002,4232.2,4232.1,1e-08]
[1754851681988,12.60377417,4232.2,4232.1,1e-08]
[1754851686396,12.813778,4232.2,4232.1,1e-08]
[1754851686901,13.242478,4232.2,4232.1,1e-08]
[1754851687684,12.813778,4232.2,4232.1,1e-08]
[1754851687883,12.263778,4232.2,4232.1,1e-08]
[1754851688184,8.686778,4232.2,4232.1,1e-08]
[1754851688397,12.263778,4232.2,4232.1,1e-08]
[1754851688595,8.686778,4232.2,4232.1,1e-08]
[1754851688816,12.692478,4232.2,4232.1,1e-08]
[1754851689213,9.115478,4232.2,4232.1,1e-08]
[1754851689387,12.69257927,4232.2,4232.1,1e-08]
[1754851689715,12.05577417,4232.2,4232.1,1e-08]
[1754851689886,8.47877417,4232.2,4232.1,1e-08]
[1754851690084,12.69255551,4232.2,4232.1,1e-08]
[1754851690429,9.11555551,4232.2,4232.1,1e-08]
[1754851690614,12.69155551,4232.2,4232.1,1e-08]
[1754851691229,9.11555551,4232.2,4232.1,1e-08]
[1754851691407,12.69155551,4232.2,4232.1,1e-08]
[1754851691723,9.11562221,4232.2,4232.1,1e-08]
[1754851691880,12.69162221,4232.2,4232.1,1e-08]
[1754851692286,12.69162937,4232.2,4232.1,1e-08]
[1754851695528,12.26292937,4232.2,4232.1,1e-08]
[1754851696944,12.05484803,4232.2,4232.1,1e-08]
[1754851698213,12.26314061,4232.2,4232.1,1e-08]
[1754851698529,11.62614803,4232.2,4232.1,1e-08]
[1754851699393,11.80826679,4232.2,4232.1,1e-08]
[1754851701703,11.80826679,4232.2,4232.1,0.44790001]
[1754851703229,11.80826679,4232.2,4232.1,1e-08]
[1754851705330,11.17124803,4232.2,4232.1,1e-08]
[1754851708937,7.59524803,4232.2,4232.1,0.44790001]
[1754851709111,7.59524803,4232.2,4232.1,0.90240001]
[1754851709315,9.78334728,4232.2,4232.1,0.90240001]
[1754851709828,6.20734728,4232.2,4232.1,0.90240001]
[1754851710027,9.78334728,4232.2,4232.1,0.90240001]
[1754851710513,10.42158824,4232.2,4232.1,0.90240001]
[1754851710714,6.78234728,4232.2,4232.1,0.90240001]
[1754851710942,9.78234728,4232.2,4232.1,0.90240001]
[1754851712436,9.5612206,4232.2,4232.1,0.90240001]
[1754851713540,9.05185413,4232.2,4232.1,0.90240001]
[1754851713918,6.05185413,4232.2,4232.1,0.90240001]
[1754851714934,3.6934,4232.2,4232.1,0.90240001]
[1754851716134,6.05623729,4232.2,4232.1,0.90240001]
[1754851722024,6.05823729,4232.2,4232.1,0.44790001]
[1754851723242,3.6954,4232.2,4232.1,0.90240001]
[1754851725556,3.6954,4232.2,4232.1,1.22894515]
[1754851725557,0.002,4232.2,4232.1,1.22894515]
[1754851730162,0.002,4232.2,4232.1,0.90240001]
[1754851730555,0.002,4232.2,4232.1,3.26529313]
[1754851731286,0.002,4232.2,4232.1,0.90240001]
[1754851732383,0.002,4232.2,4232.1,3.26529313]
[1754851739454,0.002,4232.2,4232.1,3.28892206]
[1754851739770,0.002,4232.2,4232.1,4.19972417]
[1754851739971,0.002,4232.2,4232.1,4.2233531]
[1754851740684,0.002,4232.2,4232.1,4.19972417]
[1754851746887,0.002,4232.2,4232.1,4.74972417]
[1754851747885,0.002,4232.2,4232.1,4.7733531]
[1754851748093,0.002,4232.2,4232.1,4.74972417]
[1754851748389,0.002,4232.2,4232.1,4.7733531]
[1754851748985,0.002,4232.2,4232.1,4.74972417]
[1754851749188,0.002,4232.2,4232.1,8.3463531]
[1754851749379,0.002,4232.2,4232.1,8.32272417]
[1754851753456,0.002,4232.2,4232.1,7.31772417]
[1754851753663,0.002,4232.2,4232.1,7.86772417]
[1754851753993,0.002,4232.2,4232.1,8.32122417]
[1754851754592,0.002,4232.2,4232.1,7.86772417]
[1754851754890,0.002,4232.2,4232.1,7.42032417]
[1754851755886,0.002,4232.2,4232.1,7.86772417]
[1754851758494,0.002,4232.2,4232.1,7.42032417]
[1754851759992,0.002,4232.2,4232.1,7.87392417]
[1754851761300,0.4698,4232.2,4232.1,7.42032417]
[1754851761593,0.4698,4232.2,4232.1,6.87032417]
[1754851763092,0.002,4232.2,4232.1,6.87032417]
[1754851773490,0.002,4232.2,4232.1,7.42032417]
[1754851773826,0.002,4232.2,4232.1,8.35852417]
[1754851774122,0.002,4232.2,4232.1,11.35852417]
[1754851777931,0.002,4232.5,4232.4,2.91272564]
[1754851778098,0.002,4232.5,4232.4,11.41675782]
[1754851778292,0.002,4232.5,4232.4,12.44973057]
[1754851781029,0.002,4232.5,4232.4,11.96513057]
[1754851783913,0.002,4232.5,4232.4,11.51153057]
[1754851784514,0.002,4232.5,4232.4,10.96153057]
[1754851784820,0.9176,4232.5,4232.4,9.05312564]
[1754851787086,0.9176,4232.5,4232.4,3.6904]
[1754851787240,0.9176,4232.5,4232.4,0.1184]
[1754851787619,0.9176,4232.5,4232.4,2.48112564]
[1754851787828,0.9176,4232.5,4232.4,0.1184]
[1754851788511,0.9176,4232.5,4232.4,2.48112564]
[1754851789921,0.002,4232.5,4232.4,2.48112564]
[1754851790543,0.5002,4232.5,4232.4,2.48112564]
[1754851790738,0.9287,4232.5,4232.4,2.48112564]
[1754851791137,0.002,4232.5,4232.4,2.48112564]
[1754851791339,0.002,4232.5,4232.4,6.05312564]
[1754851791848,0.002,4232.5,4232.4,7.37036096]
[1754851801238,0.002,4232.5,4232.4,7.85026096]
[1754851801749,0.002,4232.5,4232.4,7.37036096]
[1754851801949,0.002,4232.5,4232.4,6.93796096]
[1754851802760,0.002,4232.5,4232.4,7.37036096]
[1754851807351,0.002,4232.5,4232.4,11.40026096]
[1754851810985,0.002,4232.5,4232.4,10.92036096]
[1754851813392,0.002,4232.5,4232.4,11.40026096]
[1754851814679,0.002,4232.5,4232.4,10.92036096]
[1754851817116,0.002,4232.5,4232.4,6.36596096]
[1754851817303,0.5002,4232.5,4232.4,9.05212564]
[1754851817461,0.9287,4232.5,4232.4,9.05212564]
[1754851817661,0.9287,4232.5,4232.4,6.05212564]
[1754851821692,0.5002,4232.5,4232.4,6.05212564]
[1754851823095,0.9712,4232.5,4232.4,6.05212564]
[1754851823816,0.002,4232.5,4232.4,6.05212564]
[1754851824098,0.002,4232.5,4232.4,11.13392144]
[1754851824282,0.002,4232.5,4232.4,11.70682144]
[1754851826192,0.002,4232.5,4232.4,11.25232144]
[1754851827694,0.002,4232.5,4232.4,9.05212564]
[1754851827896,0.9282,4232.5,4232.4,6.05212564]
[1754851831996,0.4572,4232.5,4232.4,6.05212564]
[1754851832778,0.002,4232.5,4232.4,6.05212564]
[1754851835500,0.002,4232.5,4232.4,6.95212564]
[1754851836110,0.4572,4232.5,4232.4,6.95212564]
[1754851836310,0.9282,4232.5,4232.4,6.95212564]
[1754851836707,0.9282,4232.5,4232.4,3.38112564]
[1754851836913,0.9282,4232.5,4232.4,4.5894]
[1754851837687,1.25768229,4232.5,4232.4,1.0184]
[1754851837892,1.25768229,4232.5,4232.4,0.1184]
[1754851843525,0.78668229,4232.5,4232.4,0.1184]
[1754851844230,1.25768229,4232.5,4232.4,0.1184]
[1754851844406,0.33148229,4232.5,4232.4,0.1184]
[1754851844933,0.78668229,4232.5,4232.4,0.1184]
[1754851845138,0.78668229,4232.5,4232.4,2.48112564]
[1754851845339,0.002,4232.5,4232.4,2.36272564]
[1754851845502,0.002,4232.5,4232.4,3.36892564]
[1754851846113,0.002,4232.5,4232.4,6.93992564]
[1754851846326,0.002,4232.5,4232.4,6.48542564]
[1754851850938,0.002,4232.5,4232.4,6.97492564]
[1754851855310,0.002,4232.5,4232.4,7.90870026]
[1754851857424,0.002,4232.5,4232.4,7.79030026]
[1754851857642,0.002,4232.5,4232.4,7.90870026]
[1754851861018,0.002,4232.5,4232.4,10.90870026]
[1754851861424,0.002,4232.5,4232.4,11.45870026]
[1754851866132,1e-08,4232.5,4232.4,11.45870026]
[1754851866933,0.002,4232.7,4232.4,11.45870026]
[1754851866934,1e-08,4232.7,4232.5,5.91266981]
[1754851867133,0.042,4232.9,4232.6,10.65210456]
[1754851867355,0.002,4233.1,4232.9,9.6664513]
[1754851867527,0.002,4233.1,4232.9,13.2364513]
[1754851867731,0.002,4233.1,4232.9,14.1716513]
[1754851868447,0.002,4233.1,4233.0,5.36239073]
[1754851868635,0.002,4233.1,4233.0,8.49909075]
[1754851869041,1e-08,4233.1,4233.0,9.04909075]
[1754851871746,1e-08,4233.1,4233.0,9.14365975]
[1754851881468,1e-08,4233.3,4233.2,2.91227912]
[1754851881762,1e-08,4233.3,4233.2,6.50490191]
[1754851881931,1e-08,4233.3,4233.2,7.97878898]
[1754851882130,1e-08,4233.3,4233.2,8.86628898]
[1754851882329,1e-08,4233.3,4233.2,8.98468898]
[1754851883742,1e-08,4233.3,4233.2,8.53398898]
[1754851884857,1e-08,4233.3,4233.2,8.09718898]
[1754851885453,1e-08,4233.3,4233.2,8.53398898]
[1754851889948,1e-08,4233.3,4233.2,8.09718898]
[1754851890467,1e-08,4233.3,4233.2,8.53398898]
[1754851890668,1e-08,4233.3,4233.2,8.98468898]
[1754851891854,1e-08,4233.3,4233.2,8.53398898]
[1754851892103,1e-08,4233.4,4233.3,5.91222332]
[1754851892262,1e-08,4233.4,4233.3,7.34691455]
[1754851892455,1e-08,4233.4,4233.3,7.78371455]
[1754851894457,1e-08,4233.4,4233.3,7.34691455]
[1754851894669,1e-08,4233.4,4233.3,7.78371455]
[1754851894872,1e-08,4233.5,4233.4,5.91216752]
[1754851895070,1e-08,4233.5,4233.4,11.61855093]
[1754851896584,1e-08,4233.6,4233.5,5.36211172]
[1754851896965,1e-08,4233.6,4233.5,5.48051172]
[1754851897173,1e-08,4233.6,4233.5,6.89987419]
[1754851897901,1e-08,4233.6,4233.5,6.99443719]
[1754851901062,0.49320001,4233.6,4233.5,6.99443719]
[1754851903788,1e-08,4233.6,4233.5,6.99443719]
[1754851903995,0.93350001,4233.6,4233.5,9.59851172]
[1754851904184,0.93350001,4233.6,4233.5,9.04851172]
[1754851905396,1e-08,4233.6,4233.5,9.59851172]
[1754851905794,1e-08,4233.6,4233.5,10.03531172]
[1754851906007,1e-08,4233.6,4233.5,11.27505964]
[1754851907402,1e-08,4233.6,4233.5,11.36962264]
[1754851908503,1e-08,4233.6,4233.5,11.84612264]
[1754851909513,1e-08,4233.6,4233.5,11.38222264]
[1754851909680,1e-08,4233.6,4233.5,10.93282264]
[1754851909877,0.46000001,4233.6,4233.5,10.93282264]
[1754851910505,1e-08,4233.6,4233.5,10.93282264]
[1754851915505,1e-08,4233.6,4233.5,10.93382264]
[1754851917118,0.89320001,4233.6,4233.5,10.93382264]
[1754851917423,0.89320001,4233.6,4233.5,9.69407472]
[1754851917577,0.89320001,4233.6,4233.5,9.14407472]
[1754851917886,0.89320001,4233.6,4233.5,9.04951172]
[1754851920306,0.46000001,4233.6,4233.5,9.04951172]
[1754851921836,1e-08,4233.6,4233.5,9.59951172]
[1754851922132,1e-08,4233.6,4233.5,11.75497964]
[1754851922537,1e-08,4233.6,4233.5,11.29107964]
[1754851922741,1e-08,4233.6,4233.5,11.38564464]
[1754851923645,1e-08,4233.6,4233.5,10.93624464]
[1754851923940,1e-08,4233.6,4233.5,11.38564464]
[1754851924935,1e-08,4233.6,4233.5,10.93624464]
[1754851926718,0.46000001,4233.6,4233.5,6.81824464]
[1754851926910,0.89320001,4233.6,4233.5,9.04951172]
[1754851927611,0.89320001,4233.6,4233.5,0.1194]
[1754851927816,0.89320001,4233.6,4233.5,3.6874]
[1754851928038,0.89320001,4233.6,4233.5,6.04951172]
[1754851931740,1e-08,4233.6,4233.5,6.04951172]
[1754851932124,0.46000001,4233.6,4233.5,6.04951172]
[1754851932843,1e-08,4233.6,4233.5,6.04951172]
[1754851933044,1e-08,4233.6,4233.5,6.89068484]
[1754851933343,1e-08,4233.6,4233.5,7.44068484]
[1754851933511,1e-08,4233.6,4233.5,10.89008484]
[1754851934341,1e-08,4233.6,4233.5,10.44068484]
[1754851936043,1e-08,4233.6,4233.5,10.89008484]
[1754851936421,1e-08,4233.6,4233.5,11.35398484]
[1754851938630,1e-08,4233.6,4233.5,11.44854784]
[1754851942251,1e-08,4234.1,4234.0,2.36183278]
[1754851942427,7.28616974,4236.4,4234.4,2.3616031]
[1754851942428,0.9097,4235.1,4234.4,2.3616031]
[1754851942628,0.9097,4235.1,4234.8,2.4797866]
[1754851942829,0.4386,4235.1,4234.8,6.0477866]
[1754851943044,0.5131,4234.9,4234.8,6.0477866]
[1754851943634,0.042,4234.9,4234.8,6.0477866]
[1754851944660,0.042,4234.9,4234.8,6.5977866]
[1754851947353,0.042,4234.9,4234.8,7.49371131]
[1754851947743,0.042,4234.9,4234.8,7.93131131]
[1754851949059,0.042,4234.9,4234.8,7.49371131]
[1754851949778,0.042,4234.9,4234.8,7.93131131]
[1754851950440,1e-08,4234.9,4234.8,7.93131131]
[1754851950763,1e-08,4234.9,4234.8,11.42171131]
[1754851958990,1e-08,4234.9,4234.8,11.42071131]
[1754851960689,1e-08,4234.9,4234.8,10.93031131]
[1754851960890,0.002,4235.8,4235.7,5.91088485]
[1754851961090,0.002,4235.8,4235.7,9.47688485]
[1754851961295,0.4406,4235.8,4235.7,9.47688485]
[1754851961789,0.9117,4235.8,4235.7,9.47688485]
[1754851962101,0.9117,4235.8,4235.7,9.59528485]
[1754851963802,0.9117,4235.8,4235.7,9.04528485]
[1754851964294,0.9117,4235.8,4235.7,3.6844]
[1754851964591,0.9117,4235.8,4235.7,6.04528485]
[1754851969300,0.002,4235.8,4235.7,6.59528485]
[1754851971506,0.002,4235.8,4235.7,7.02568485]
[1754851972286,0.002,4235.8,4235.7,6.59528485]
[1754851972501,0.002,4235.8,4235.7,7.96435286]
[1754851972699,0.002,4235.8,4235.7,7.53395286]
[1754851974383,0.002,4235.8,4235.7,6.59528485]
[1754851986332,0.4788,4235.8,4235.7,6.04528485]
[1754851986619,0.9431,4235.8,4235.7,6.04528485]
[1754851986825,0.9431,4235.8,4235.7,3.6844]
[1754851987802,1.27747947,4235.8,4235.7,3.6844]
[1754851988198,1.27747947,4235.8,4235.7,0.1184]
[1754851988619,0.9431,4235.8,4235.7,0.1184]
[1754851990034,0.9431,4235.8,4235.6,3.566]
[1754851990321,0.9411,4235.7,4235.5,3.6844]
[1754851990619,0.8264,4235.6,4235.5,0.1184]
[1754851993236,0.002,4235.8,4235.5,2.47939194]
[1754851993438,0.4768,4235.7,4235.6,5.9269363]
[1754851993660,0.4768,4235.7,4235.6,3.566]
[1754851994052,0.8264,4235.7,4235.6,3.566]
[1754851994222,1.14931178,4235.7,4235.6,3.566]
[1754851994425,0.8264,4235.7,4235.6,3.566]
[1754851994655,0.4768,4235.7,4235.6,3.566]
[1754851994876,0.002,4235.8,4235.7,2.91088485]
[1754851995171,1e-08,4235.8,4235.7,6.82998485]
[1754851995327,1e-08,4235.8,4235.7,8.11752257]
[1754851997756,0.002,4236.2,4236.1,2.36066192]
[1754851998049,0.002,4236.2,4236.1,6.04806192]
[1754851998552,0.002,4236.2,4236.1,6.49216192]
[1754852004171,0.002,4236.2,4236.1,6.98416192]
[1754852004342,0.002,4236.2,4236.1,7.91865185]
[1754852005242,0.002,4236.2,4236.1,3.41355185]
[1754852005456,0.002,4236.2,4236.1,6.04606192]
[1754852006846,0.002,4236.2,4236.1,6.49016192]